Cogmind - Beta 10.2 @@@ ROGUE MODE // 2021.01.07 @ 17:03:58 Player: Demise Result: Destroyed by 8R-AWN with 8R-AWN's Boregun Performance ------------- Evolutions (1) 500 Regions Visited (5) 1000 Robots Destroyed (74) 370 Value Destroyed (1718) 1718 Prototype IDs (28) 560 Alien Tech Used (0) 0 Bonus (438) 438 TOTAL SCORE: 4586 Bonus ------- High Alert Combat Kills 86 Follower Combat Kills 61 Aligned with FarCom 300 Friendly Fire -9 Cogmind --------- Core Integrity 0/400 Matter 66/300 Energy 280/280 System Corruption 5% Temperature Cool (0) Movement Walking (170) Ox2 Location -9/Exiles Parts ------- > --- POWER (1) -------- Heavy Ion Engine > --- PROPULSION (2) --- Potential Leg Potential Leg > --- UTILITY (4) ------ Large Storage Unit High-capacity Storage Unit High-capacity Storage Unit High-capacity Storage Unit > --- WEAPON (2) ------- Improved Assault Rifle Improved Assault Rifle > --- INVENTORY (34) --- Light Treads Large Storage Unit Large Storage Unit Large Storage Unit Large Storage Unit Large Storage Unit High-capacity Matter Pod (200) Experimental Sensor Array Signal Interpreter Improved Targeting Computer Light Armor Plating Light Armor Plating Light Armor Plating Medium Armor Plating Hacking Suite Autogun Improved Assault Rifle Faulty Improved Assault Rifle AWS/Autocannon Rocket Launcher Datajack Mining Laser Katana Deploy-a-Sentry Deploy-a-Sentry Deploy-a-Sentry Peak State ------------ > --- POWER ------------ Heavy Ion Engine > --- PROPULSION ------- Potential Leg Potential Leg > --- UTILITY ---------- Large Storage Unit High-capacity Storage Unit High-capacity Storage Unit High-capacity Storage Unit > --- WEAPON ----------- Improved Assault Rifle Improved Assault Rifle > --- INVENTORY -------- Light Treads Large Storage Unit Large Storage Unit Large Storage Unit Large Storage Unit Large Storage Unit High-capacity Matter Pod Experimental Sensor Array Signal Interpreter Improved Targeting Computer Light Armor Plating Light Armor Plating Light Armor Plating Medium Armor Plating Hacking Suite Autogun Improved Assault Rifle Improved Assault Rifle AWS/Autocannon Rocket Launcher Datajack Mining Laser Katana Deploy-a-Sentry Deploy-a-Sentry Deploy-a-Sentry [Rating: 42] Favorites ----------- Power Improved Ion Engine Engine Improved Ion Engine Propulsion Light Treads Treads Light Treads Leg Potential Leg Utility Large Storage Unit Device Tractor Beam Storage Large Storage Unit Hackware Hacking Suite Protection Light Armor Plating Weapon Assault Rifle Energy Gun Medium Laser Ballistic Gun Assault Rifle Launcher Rocket Launcher Special Weapon Mining Laser Build | -11 -10 -10 -9 -9 -9 ------- Run | Scr Mat Min Mat Min Exi Slots Evolved 2 | . . . 2 . . Power . | . . . . . . Propulsion . | . . . . . . Utility 2 | . . . 2 . . Weapon . | . . . . . . Parts Attached 90 | 8 21 6 41 6 8 Power 14 | 1 4 1 7 1 . Engine 14 | 1 4 1 7 1 . Core . | . . . . . . Reactor . | . . . . . . Propulsion 23 | 2 2 2 13 2 2 Treads 21 | 2 2 2 13 2 . Leg 2 | . . . . . 2 Wheel . | . . . . . . Hover . | . . . . . . Flight . | . . . . . . Utility 17 | 2 3 1 7 1 3 Device 2 | 1 1 . . . . Storage 10 | 1 2 1 3 . 3 Processor . | . . . . . . Hackware 1 | . . . 1 . . Protection 4 | . . . 3 1 . Artifact . | . . . . . . Weapon 36 | 3 12 2 14 2 3 Energy Gun 3 | 1 . 1 1 . . Energy Cannon . | . . . . . . Ballistic Gun 26 | 2 7 1 12 2 2 Ballistic Cannon . | . . . . . . Launcher 1 | . . . . . 1 Special Weapon 6 | . 5 . 1 . . Impact Weapon . | . . . . . . Slashing Weapon . | . . . . . . Piercing Weapon . | . . . . . . Special Melee Weapon . | . . . . . . Unidentified Prototypes 4 | . . . 4 . . Parts Lost 15 | . 1 1 4 7 2 Power 1 | . . . . 1 . Propulsion 4 | . . . 1 2 1 Utility 2 | . . . 1 1 . Weapon 8 | . 1 1 2 3 1 Highest Loss Streak 7 | . 1 1 4 7 2 Average Slot Usage (%) 97 | . 99 100 99 92 88 Engine 12 | . 14 14 11 10 11 Treads 24 | . 27 28 22 22 20 Device 1 | . 4 . . . . Storage 29 | . 23 28 31 33 38 Hackware 2 | . . . 8 . . Protection 2 | . . . 3 10 5 Ballistic Gun 22 | . 25 27 21 15 11 Naked Turns . | . . . . . . Heaviest Build 127 | 14 42 44 94 94 127 Greatest Support 60 | 40 40 40 46 46 60 Greatest Overweight (x) 6 | . 1 1 2 2 6 Average Overweight (x) 1 | . . 1 1 1 2 Largest Inventory Capacity 34 | 6 16 16 26 26 34 Average Capacity 20 | 5 13 16 23 26 30 Most Carried 34 | 4 16 16 26 26 34 Average Carried 19 | 2 12 15 22 24 27 Final Capacity 34 | 6 16 16 26 26 34 Final Carried 28 | 3 16 16 26 24 28 Class Distribution -------------------- 48% | Hauler-Mutant 36% | Mutant 15% | Scavenger-Mutant Dominant Class ---------------- Mutant | -10/Materials Scavenger-Mutant | -10/Mines Hauler-Mutant | -9/Materials Hauler-Mutant | -9/Mines Hauler-Mutant | -9/Exiles Resources | -11 -10 -10 -9 -9 -9 ----------- Run | Scr Mat Min Mat Min Exi Matter Collected 2449 | 304 634 261 1058 92 100 Remotely 336 | 106 230 . . . . Salvage Created 2586 | 111 558 356 1526 18 17 Parts 175 | 9 44 19 100 1 2 Haulers Intercepted 7 | . 2 . 5 . . Recyclers Shooed . | . . . . . . Parts Field Recycled . | . . . . . . Retrieved Matter . | . . . . . . Parts Self-Destructed . | . . . . . . Prevented . | . . . . . . Kills | -11 -10 -10 -9 -9 -9 ------- Run | Scr Mat Min Mat Min Exi Combat Hostiles Destroyed 52 | . 10 7 29 2 4 Guns 49 | . 10 7 29 2 1 AOE 3 | . . . . . 3 Classes Destroyed 13 | 2 5 2 1 1 2 Worker 2 | . . 1 1 . . Tunneler 3 | 2 1 . . . . Hauler 7 | . 2 . 5 . . Recycler 3 | 1 . 1 1 . . Operator 5 | . 2 . 3 . . Watcher 5 | . 3 . 2 . . Swarmer 15 | . 3 3 8 1 . Grunt 21 | . 7 2 12 . . Duelist 1 | . . . 1 . . Sentry 10 | . . 2 8 . . Demolisher 1 | . . . . 1 . Zionite 1 | . . . . . 1 Assembled 4 | . . . . . 4 Best Kill Streak 5 | 3 4 3 5 1 5 Combat Bots Only 4 | . 4 3 3 1 4 Max Kills in Single Turn 2 | 1 2 1 2 1 2 Gunslinging 1 | . 1 . 1 . . Exploded 1 | . . . . . 1 Melee . | . . . . . . Uniques/NPCs Destroyed . | . . . . . . Combat | -11 -10 -10 -9 -9 -9 -------- Run | Scr Mat Min Mat Min Exi Damage Taken 3931 | . 649 410 1282 1193 397 Core 654 | . 150 84 163 217 40 Absorbed by Shields . | . . . . . . Core Remaining (%) 53 | 100 . 6 . . . Volleys Fired 253 | 7 75 27 116 15 13 Largest 2 | 2 2 2 2 2 2 Hottest 100 | 70 100 70 100 43 46 Shots Fired 467 | 9 128 54 232 28 16 Gun 437 | 9 107 54 231 28 8 Cannon . | . . . . . . Launcher 8 | . . . . . 8 Special 22 | . 21 . 1 . . Kinetic 433 | 8 107 51 231 28 8 Thermal 26 | 1 21 3 1 . . Explosive 8 | . . . . . 8 Electromagnetic . | . . . . . . Robot Hit Streak 15 | 6 11 13 15 7 2 Robot Miss Streak 5 | 1 5 5 4 5 2 Penetration Max . | . . . . . . Secondary Targets 7 | . 4 2 1 . . Max Gunslinging Chain 1 | . 1 1 1 . . Shots Hit Robots 275 | 6 63 29 156 17 4 Core Hits 131 | 4 31 17 64 5 10 Critical Hits 3 | . 1 . 2 . . Critical Kills . | . . . . . . Critical Parts Destroyed 3 | . 1 . 2 . . Melee Attacks . | . . . . . . Impact . | . . . . . . Slashing . | . . . . . . Piercing . | . . . . . . Sneak Attacks . | . . . . . . Combat Hostiles . | . . . . . . Follow-up Attacks . | . . . . . . Damage Inflicted 4089 | 80 800 385 2309 194 321 Guns 3818 | 80 800 385 2309 194 50 Cannons . | . . . . . . Explosions 271 | . . . . . 271 Melee . | . . . . . . Ramming . | . . . . . . Kinetic 3792 | 80 800 359 2309 194 50 Thermal 26 | . . 26 . . . Explosive 271 | . . . . . 271 Electromagnetic . | . . . . . . Impact . | . . . . . . Slashing . | . . . . . . Piercing . | . . . . . . Highest Corruption 5 | . . . 5 5 5 Average Corruption 5 | . . . 5 5 5 Corruption Purged . | . . . . . . Effects 68 | . . . 33 12 23 Message Errors 13 | . . . 9 1 3 Matter Fused 20 | . . . 9 4 7 Heat Flow Errors 2 | . . . 1 . 1 Energy Discharges 8 | . . . 3 . 5 Data Loss (minor) 8 | . . . 2 2 4 Data Loss (major) 3 | . . . . 1 2 Misfires 4 | . . . 2 2 . Targeting Errors 8 | . . . 6 1 1 Weapon Failures 2 | . . . 1 1 . Overload Shots . | . . . . . . Overflow Damage 6 | . . . . . 6 Projectiles . | . . . . . . Explosions 6 | . . . . . 6 Melee . | . . . . . . Knockbacks . | . . . . . . Impact . | . . . . . . Kinetic . | . . . . . . Secondary . | . . . . . . Self-Inflicted Damage 27 | . . . . . 27 Shots 1 | . . . . . 1 Rammed . | . . . . . . Targets Rammed . | . . . . . . Kicked . | . . . . . . Crushed . | . . . . . . Highest Temperature 280 | 9 80 54 216 8 280 Average Temperature 40 | 6 22 15 51 6 162 Received Heat Transfer 657 | . 198 147 306 6 . Siege Activations . | . . . . . . Robots Corrupted . | . . . . . . Combat Hostiles . | . . . . . . Parts Fried . | . . . . . . Impact Corruptions . | . . . . . . Robots Melted . | . . . . . . Combat Hostiles . | . . . . . . Parts Melted . | . . . . . . Heat Transferred 74 | . . 74 . . . Parts Sabotaged . | . . . . . . Parts Stolen . | . . . . . . Parts Stripped . | . . . . . . Power Chain Reactions . | . . . . . . Missiles Intercepted . | . . . . . . Alert | -11 -10 -10 -9 -9 -9 ------- Run | Scr Mat Min Mat Min Exi Peak Influence 604 | 15 212 110 604 306 . Initial 216 | . 9 23 42 216 . Average 195 | 6 95 50 364 215 . Maximum Alert Level 2 | . 1 . 2 1 . Low Security (%) 58 | 100 87 100 18 19 . Level 1 25 | . 12 . 39 80 . Level 2 15 | . . . 42 . . Level 3 . | . . . . . . Level 4 . | . . . . . . Level 5 . | . . . . . . High Security . | . . . . . . Max Security . | . . . . . . Squads Dispatched 7 | . 3 . 4 . . Investigation 1 | . 1 . . . . Extermination . | . . . . . . Reinforcement 6 | . 2 . 4 . . Assault . | . . . . . . Garrison . | . . . . . . Intercept . | . . . . . . Construction Impeded . | . . . . . . Haulers Reinforced . | . . . . . . Stealth | -11 -10 -10 -9 -9 -9 --------- Run | Scr Mat Min Mat Min Exi Distress Signals 4 | . 1 . 3 . . Communications Jammed . | . . . . . . Distress Signals . | . . . . . . Times Spotted 97 | . 22 8 53 8 6 Peak Tracking Total 10 | . 3 3 5 4 10 Tactical Retreats 4 | . . 1 1 1 1 Traps | -11 -10 -10 -9 -9 -9 ------- Run | Scr Mat Min Mat Min Exi Traps Triggered . | . . . . . . Indirectly . | . . . . . . Trap Hack Attempts . | . . . . . . Triggered . | . . . . . . Disarmed . | . . . . . . Reprogrammed . | . . . . . . Reused 4 | . . . . . 4 Traps Extracted . | . . . . . . Installed 4 | . . . . . 4 Triggered . | . . . . . . Exploded 3 | . . . . . 3 Machines | -11 -10 -10 -9 -9 -9 ---------- Run | Scr Mat Min Mat Min Exi Machines Disabled 9 | . 1 . 3 . 5 Max in Single Turn 2 | . 1 . 1 . 2 Machines Sabotaged . | . . . . . . Garrisons Compromised . | . . . . . . Overloaded Fab Kills . | . . . . . . Fab Network Shutdowns . | . . . . . . Hacking | -11 -10 -10 -9 -9 -9 --------- Run | Scr Mat Min Mat Min Exi Machines Accessed 22 | . 9 . 11 . 2 Terminals 14 | . 6 . 8 . . Fabricators . | . . . . . . Repair Stations 3 | . 1 . 2 . . Recycling Units 2 | . 2 . . . . Scanalyzers 1 | . . . 1 . . Garrison Access . | . . . . . . Total Hacks 72 | . 29 . 41 . 2 Successful 47 | . 17 . 28 . 2 Failed 23 | . 11 . 12 . . Catastrophic 1 | . . . 1 . . Database Lockouts 2 | . 1 . 1 . . Manual 42 | . 20 . 21 . 1 Terminals 48 | . 19 . 29 . . Fabricators . | . . . . . . Repair Stations 16 | . 6 . 10 . . Recycling Units 4 | . 4 . . . . Scanalyzers 2 | . . . 2 . . Garrison Access . | . . . . . . Terminal Hacks 15 | . 4 . 9 . 2 Record 1 | . . . . . 1 Part Schematic 1 | . . . 1 . . Robot Analysis 4 | . 2 . 2 . . Level Access Points 2 | . 1 . 1 . . Branch Access Points 2 | . 1 . 1 . . Terminal Index 1 | . . . 1 . . Locate Traps 1 | . . . 1 . . Hauler Manifests 1 | . . . 1 . . Zone Layout 1 | . . . 1 . . EX-Prototype ID Bank 1 | . . . . . 1 Fabricator Hacks . | . . . . . . Repair Station Hacks 16 | . 6 . 10 . . Scan Component 8 | . 3 . 5 . . Repair 8 | . 3 . 5 . . Recycling Unit Hacks 1 | . 1 . . . . Retrieve Components 1 | . 1 . . . . Scanalyzer 2 | . . . 2 . . Insert Component 1 | . . . 1 . . Analyze 1 | . . . 1 . . Garrison Access Hacks . | . . . . . . Unauthorized Hacks 13 | . 6 . 7 . . Terminals 12 | . 5 . 7 . . Track 3 | . 1 . 2 . . Assimilate 2 | . 2 . . . . Botnet 6 | . 1 . 5 . . Operators 1 | . 1 . . . . Fabricators . | . . . . . . Repair Stations . | . . . . . . Recycling Units 1 | . 1 . . . . Tunnel 1 | . 1 . . . . Scanalyzers . | . . . . . . Garrison Access . | . . . . . . Data Cores Recovered 1 | . . . 1 . . Used . | . . . . . . Hacking Detections 16 | . 7 . 9 . . Full Trace Events 3 | . 1 . 2 . . Feedback Events . | . . . . . . Feedback Blocked . | . . . . . . Robot Schematics Acquired . | . . . . . . Robots Built . | . . . . . . Matter . | . . . . . . Time . | . . . . . . Total Robot Build Rating . | . . . . . . Part Schematics Acquired 2 | . . . 2 . . Parts Built . | . . . . . . Matter . | . . . . . . Time . | . . . . . . Total Part Build Rating . | . . . . . . Parts Repaired 8 | . 3 . 5 . . Time 220 | . 78 . 142 . . Parts Recycled . | . . . . . . Recycled Matter . | . . . . . . Retrieved Matter . | . . . . . . Retrieved Components 4 | . 4 . . . . Parts Scanalyzed 1 | . . . 1 . . Part Schematics Acquired 1 | . . . 1 . . Parts Damaged . | . . . . . . Bothacking | -11 -10 -10 -9 -9 -9 ------------ Run | Scr Mat Min Mat Min Exi Used RIF Installer . | . . . . . . Robots Hacked . | . . . . . . Non-combat . | . . . . . . Combat . | . . . . . . Robot Hacks Applied . | . . . . . . Relay Couplers Released . | . . . . . . Robots Rewired . | . . . . . . Allies Hacked . | . . . . . . Hacks Repelled . | . . . . . . Allies | -11 -10 -10 -9 -9 -9 -------- Run | Scr Mat Min Mat Min Exi Total Allies 4 | . 1 3 . . . Largest Group 4 | . 1 4 4 . . Highest-Rated Group 50 | . 10 50 50 . . Highest-Rated Ally 16 | . 10 16 16 . . Total Orders 24 | . 13 7 4 . . STAY 13 | . 7 4 2 . . FOLLOW 11 | . 6 3 2 . . Ally Attacks 19 | . . . 19 . . Total Damage 162 | . . . 162 . . Kills 5 | . . . 5 . . Allies Corrupted . | . . . . . . Allies Melted . | . . . . . . Intel | -11 -10 -10 -9 -9 -9 ------- Run | Scr Mat Min Mat Min Exi Robot Analysis Total 4 | . 2 . 2 . . Derelict Logs Recovered 3 | . . 2 . 1 . Drone Launches . | . . . . . . Drone Recoveries . | . . . . . . Exploration | -11 -10 -10 -9 -9 -9 ------------- Run | Scr Mat Min Mat Min Exi Turns Passed 6432 | 68 1785 1150 2052 497 880 Spaces Moved 2890 | 35 867 581 766 235 406 Core 18 | 18 . . . . . Treads 2859 | 17 867 581 766 235 393 Legs 13 | . . . . . 13 Wheels . | . . . . . . Hover . | . . . . . . Flight . | . . . . . . Fastest Speed 50 | 50 160 180 180 180 170 Average Speed 180 | 103 165 180 187 190 199 Slowest Speed 280 | 160 180 180 200 200 280 Overloaded Moves . | . . . . . . Propulsion Burnouts . | . . . . . . Robots Hopped . | . . . . . . Cave-ins Triggered . | . . . . . . Exploration Rate (%) 66 | 4 99 99 82 50 66 Regions Visited 5 Branch Regions 3 Pre-discovered Areas 2 | . 1 . . . 1 Known Exits Taken 3 | . 1 1 1 . . Unknown Exits Taken 2 | 1 . . . 1 . Scrap Searched 3 | . . 3 . . . Spaces Dug 19 | . 11 . 1 . 7 Terrain Destroyed 72 | . 16 . 1 . 55 Melee . | . . . . . . Projectile 17 | . 16 . 1 . . AOE 55 | . . . . . 55 Terrain Rammed . | . . . . . . Walls Destroyed . | . . . . . . Machines Disabled . | . . . . . . Actions | -11 -10 -10 -9 -9 -9 --------- Run | Scr Mat Min Mat Min Exi Total 3626 | 55 1044 636 1163 263 465 Wait 269 | . 59 14 181 . 15 Move 2885 | 34 866 580 765 234 406 Hop . | . . . . . . Pick Up 66 | 6 15 3 25 6 11 Fast Attach 22 | 4 4 1 13 . . Attach 23 | 3 1 1 8 6 4 Detach 5 | . 1 . 3 . 1 Swap 45 | 1 16 4 20 . 4 Drop 54 | . 7 6 32 2 7 Fire 253 | 7 75 27 116 15 13 Melee . | . . . . . . Ram . | . . . . . . Kick . | . . . . . . Crush . | . . . . . . Escape Stasis . | . . . . . . Rewire . | . . . . . . Trap 4 | . . . . . 4 Miscellaneous . | . . . . . . Route ------- -11/Scrapyard -10/Materials (discovered 5 exits: *Mat x3 / *Min x2) -10/Mines (discovered 2 exits: *Mat x2) -9/Materials (discovered 5 exits: *Mat x3 / *Min x2) -9/Mines (discovered 2 exits: *Mat / *Exi) -9/Exiles History --------- Turn | Location | Event 13 | -11/Scrapyard | Discovered new exit (range 15) 69 | -11/Scrapyard | Entered Materials 300 | -10/Materials | Build established: Mutant 307 | -10/Materials | Discovered new exit (range 7) 376 | -10/Materials | Discovered new exit (range 8) 837 | -10/Materials | Discovered new exit (range 14) 888 | -10/Materials | Core integrity fell below 50% 1137 | -10/Materials | Discovered new exit (range 13) 1227 | -10/Materials | Repaired Lgt. Treads 1262 | -10/Materials | Repaired Lgt. Treads 1288 | -10/Materials | Repaired Assault Rifle 1445 | -10/Materials | Identified exit to Mines 1647 | -10/Materials | Discovered new exit (range 13) 1735 | -10/Materials | Central database locked down 1786 | -10/Materials | Identified exit to Materials 1854 | -10/Materials | Entered Mines 1854 | -10/Mines | Accompanied by 1 ally 1889 | -10/Mines | Found a damaged Exp. Sensor Array with a note attached 1893 | -10/Mines | Found Prototype Device 1962 | -10/Mines | Learned Materials emergency access door positions 2041 | -10/Mines | Met a Derelict bent on vengeance 2129 | -10/Mines | Received a Rocket Launcher from a helpful Derelict 2353 | -10/Mines | Core integrity fell below 20% 2480 | -10/Mines | Discovered exit to Materials (range 7) 2566 | -10/Mines | Assisted by bots powering up and referring to "LRC-V3" 2641 | -10/Mines | Build established: Scavenger-Mutant 2692 | -10/Mines | Learned Materials stockpile data 2786 | -10/Mines | Discovered exit to Materials (range 7) 3004 | -10/Mines | Entered Materials 3004 | -9/Materials | Accompanied by 4 allies 3004 | -9/Materials | Evolved 2 slots: Utility x2 3067 | -9/Materials | Repaired Hvy. Assault Rifle 3095 | -9/Materials | Repaired Lgt. Treads 3122 | -9/Materials | Repaired Lgt. Treads 3260 | -9/Materials | Discovered new exit (range 13) 3471 | -9/Materials | Discovered new exit (range 14) 3525 | -9/Materials | Identified Exp. Sensor Array 3631 | -9/Materials | Build established: Hauler-Mutant 3799 | -9/Materials | Repaired Hvy. Assault Rifle 3826 | -9/Materials | Repaired Lgt. Treads 4468 | -9/Materials | Identified exit to Mines 4514 | -9/Materials | Discovered new exit (range 16) 4532 | -9/Materials | Identified exit to Materials 4712 | -9/Materials | Lost 4 parts (1n1u2w) 4740 | -9/Materials | Central database locked down 5056 | -9/Materials | Entered Mines 5059 | -9/Mines | Assembled infested the area 5064 | -9/Mines | Assisted by a Guerilla fighting off Assembled 5180 | -9/Mines | Learned location of 1 exit from Materials 5268 | -9/Mines | Core integrity fell below 50% 5280 | -9/Mines | Core integrity fell below 20% 5321 | -9/Mines | Lost 7 parts (1p2n1u3w) 5337 | -9/Mines | Found a hidden stash of uninstalled traps 5385 | -9/Mines | Discovered exit to Materials (range 15) 5545 | -9/Mines | Deemed a non-threat by the Exiles lab entrance 5545 | -9/Mines | Discovered new exit (range 5) 5553 | -9/Mines | Entered Exiles 5603 | -9/Exiles | Met 8R-AWN 5641 | -9/Exiles | Met EX-HEX 5800 | -9/Exiles | Met EX-DEC 5832 | -9/Exiles | Learned location of Zion (-6) 5874 | -9/Exiles | Met EX-BIN 5898 | -9/Exiles | Aligned with FarCom system 5900 | -9/Exiles | Given EX-Vault access code 5946 | -9/Exiles | Opened EX-Vault 5964 | -9/Exiles | Found Potential Leg 5967 | -9/Exiles | Found Potential Leg 5974 | -9/Exiles | Found Deploy-a-Sentry 5977 | -9/Exiles | Found Deploy-a-Sentry 5980 | -9/Exiles | Found Deploy-a-Sentry 5985 | -9/Exiles | Found AWS/Autocannon 6028 | -9/Exiles | Warned to stay clear of 0b10 Research branches 6333 | -9/Exiles | Attacked by the Exiles 6433 | -9/Exiles | Destroyed by 8R-AWN with 8R-AWN's Boregun Last Messages --------------- 06382_ Imp. Treads destroyed. 06384_ as-82012 destroyed. 06392_ The unstable cave ceiling collapses. 06397_ System corrupted: Matter fused (-9). 06398_ The unstable cave ceiling collapses. 06399_ Penetrated by HV Slug. 06426_ HV Slug penetrates Machine. 06426_ Machine disabled. 06426_ Penetrated by HV Slug. 06426_ HV Slug penetrates Machine. 06428_ Penetrated by HV Slug. 06428_ HV Slug penetrates Machine. 06428_ Penetrated by HV Slug. 06428_ HV Slug penetrates Wall. 06431_ Penetrated by HV Slug. 06431_ HV Slug penetrates Machine. 06431_ Penetrated by HV Slug. 06431_ HV Slug penetrates Machine. 06432_ Machine disabled. 06433_ Penetrated by HV Slug. Map ----- +----------------------------------------------------+ | ?????????????????????????????????????????????????? | | ?????????????????????????????????????????????????? | | ?????????????????????????????????????????????????? | | ?????????????????????????????????????????????????? | | ?????????????????????????????????????????????????? | | ?????????????????????????????????????????????????? | | ?????????????????????????????????????????????????? | | ?????????????????????????????????????????????????? | | ?????????????????????????????????????????????????? | | ?????????????????????????????????????????????????? | | ?????????????????????????????????????????????????? | | ?????????????????????????????????????????????????? | | ?????????????????????????????????????????????????? | | ???????????????????????????######????????????????? | | ????????????? ######???????#!!! "#???????????????? | | ????????????? #""#??????# "????????????????? | | ????????????? ??????# "#???????????????? | | ????????????? #????## ""#????????????##?? | | ????????????? #####" "#???????????? "" | | ?????????????? ##" ""##???????????" "" | | ??????????????? #"" ###?????????" | | ????????????????? #????????"" | | ???????????????????# #????????"" | | ????????????????????## # ####????? " | | ?????????????######## #?????" " | | ?????????????# !!"" @g # ???????# # | | ?????????????#! # ##???### # | | ?????????????#! " # #####X# # | | ?????????????#! ### | | ?????????????# !" ""###?# # * | | ?????????????#########????### % % | | ?????????????????????????????# = | | ??????????????????????????????# | | ???????????????????????????????### ## | | ??????????????????????????????????#### | | ?????????????????????????????????????##" | | ??????????????????????????????????????#""" | | ?????????????????????????????????????##" | | ?????????????????????????????????????#"" | | ?????????????????????????????????????#""" | | ?????????????????????????????????????""" | | ?????????????????????????????????????""" | | ?????????????????????????????????????"" | | ?????????????????????????????????????""" | | ?????????????????????????????????????"" | | ?????????????????????????????????????#"" | | ?????????????????????????????????????#"""" | | ??????????????????????????????????????# | | ???????????????????????????????????????" | | ???????????????????????????????????????"""" | +----------------------------------------------------+ Best States ------------- Heat Dissipation 28 Energy Generation 14 Energy Capacity 280 Matter Stores 300 Matter Capacity 300 Sight Range 16 Terrain Scan Density 10 Armor Coverage 225 Core Shielding 20 Evasion (%) 50 Recoil Reduction 2 Offensive Hacking 10 Item Schematics ----------------- Exp. Sensor Array | -9/Materials | Scanalyzed Hcp. Storage Unit | -9/Materials | Hacked Robot Schematics ------------------ None Fabricated ------------ Nothing Alien Tech Used ----------------- None Achievements -------------- None Challenges ------------ None Game ------ Seed AntimissileWarpFlail Manual? 0 Play Time 00:42:31 Cumulative 187.5 hours Start 2021.01.07 @ 16:24:18 End 2021.01.07 @ 17:03:58 Sessions 1 Manual Loads 0 Difficulty Rogue Special Mode None Game No. 173 Rogue 173 Adventurer 0 Explorer 0 Win Type - Total 0 Types 0/0/0/0/0/0/0/0/0 Lore% 59 Gallery% 68 Achievement% 54 Wizard Run 0 Options --------- ASCII 0 Keyboard 1 Movement Numpad Keybinds 0 Fullscreen 1 Font 12/Terminus Map View 83x54 Tactical HUD 1 Map Filters NONE Filters NONE Steam 1 RUN: b488f826-a22b-4d89-8f0f-d4c6f5bd4b0f